fUSD/lending_fUSD_20260612
["ID","MTS","AMOUNT","RATE_DAILY","PERIOD"]
[424849040,1781203838000,-63464.0,0.00015836,2]
[424849039,1781203838000,-1486.08249716,0.000158,2]
[424849032,1781203838000,-700.0,0.000156,5]
[424849029,1781203838000,-1500.0,0.00015416,2]
[424849031,1781203838000,-186.637777,0.00015547,2]
[424849030,1781203838000,-265.0,0.00015486,2]
[424849024,1781203838000,-8460.0,0.0001499,2]
[424849027,1781203838000,-949.49,0.00015228,2]
[424849041,1781203838000,-500.0,0.00015864,2]
[424849026,1781203838000,-250.0,0.00015025,2]
[424849025,1781203838000,-9556.52328842,0.0001499,2]
[424849023,1781203838000,-4255.55219311,0.0001499,2]
[424849033,1781203838000,-1400.0,0.000157,5]
[424849042,1781203838000,-203.72878403,0.00015864,2]
[424849028,1781203838000,-166.66,0.00015269,2]
[424849048,1781203838000,-150.0,0.00015864,2]
[424849063,1781203838000,-500.0,0.00015864,2]
[424849061,1781203838000,-500.0,0.00015864,2]
[424849065,1781203838000,-500.0,0.00015864,2]
[424849059,1781203838000,-500.0,0.00015864,2]
[424849069,1781203838000,-116769.2316808,0.00015865,2]
[424849067,1781203838000,-500.0,0.00015864,2]
[424849057,1781203838000,-500.0,0.00015864,2]
[424849055,1781203838000,-500.0,0.00015864,2]
[424849072,1781203838000,-682.24,0.00015865,2]
[424849051,1781203838000,-500.0,0.00015864,2]
[424849053,1781203838000,-500.0,0.00015864,2]
[424849046,1781203838000,-500.0,0.00015864,2]
[424849049,1781203838000,-2000.0,0.00015864,2]
[424849044,1781203838000,-500.0,0.00015864,2]
[424849043,1781203838000,-249.03373027,0.00015864,2]
[424849045,1781203838000,-257.4736916,0.00015864,2]
[424849050,1781203838000,-500.0,0.00015864,2]
[424849047,1781203838000,-303.73241221,0.00015864,2]
[424849052,1781203838000,-500.0,0.00015864,2]
[424849173,1781203842000,-500.0,0.00015865,2]
[424849170,1781203842000,-3616.56,0.00015865,2]
[424849171,1781203842000,-2046.78484198,0.00015865,2]
[424849172,1781203842000,-16125.43118,0.00015865,2]
[424849174,1781203843000,-508.5737123,0.00015865,2]
[424849182,1781203846000,-341.2236994,0.00015865,2]
[424849181,1781203846000,-405.49012606,0.00015865,2]
[424849309,1781204030000,500.0,0.00011045,2]
[424849312,1781204246000,2000.0,0.00010873,2]
[424849323,1781204316000,1359.37750188,0.00010738,2]
[424849322,1781204316000,3061.17312939,0.00010738,2]
[424849324,1781204316000,686.23623934,0.00010738,2]
[424849321,1781204316000,561.17312939,0.00010738,2]
[424849329,1781204391000,463.32,0.00010688,2]
[424849331,1781204466000,219.43,0.00010642,2]
[424849332,1781204504000,1452.04,0.00010653,2]
[424849334,1781204679000,166.66,0.00010959,2]
[424849336,1781204680000,93.17310995,0.00011068,2]
[424849335,1781204680000,73.48689005,0.00011068,2]
[424849339,1781204693000,1346.4,0.00010627,2]
[424849340,1781204694000,927.83160818,0.00010893,2]
[424849342,1781204982000,164.14,8.29e-05,2]
[424849359,1781205033000,-418.56839182,0.00010893,2]
[424849354,1781205033000,-166.66,0.00010693,2]
[424849358,1781205033000,-150.0,0.00010811,2]
[424849353,1781205033000,-10098.2,0.00010665,2]
[424849356,1781205033000,-250.0,0.00010722,2]
[424849357,1781205033000,-300.0,0.00010779,2]
[424849355,1781205033000,-150.0,0.00010705,2]
[424849346,1781205033000,-200.0,0.00010219,7]
[424849349,1781205033000,-200.0,0.00010402,2]
[424849350,1781205033000,-300.0,0.00010428,2]
[424849351,1781205033000,-13598.36,0.00010429,2]
[424849348,1781205033000,-500.0,0.00010363,2]
[424849360,1781205033000,-150.0,0.00010917,2]
[424849347,1781205033000,-150.0,0.00010219,2]
[424849345,1781205033000,-200.0,0.00010219,2]
[424849352,1781205033000,-153.52,0.00010553,2]
[424849361,1781205033000,-186.7,0.00010959,2]
[424849378,1781205033000,-601.94042556,0.00011569,2]
[424849363,1781205033000,-300.0,0.00010971,2]
[424849362,1781205033000,-300.0,0.00010971,2]
[424849380,1781205033000,-995.20208545,0.0001157,2]
[424849375,1781205033000,-2500.0,0.000115,4]
[424849376,1781205033000,-150.0,0.000115,2]
[424849377,1781205033000,-166.66,0.00011507,2]
[424849379,1781205033000,-8479.98576088,0.0001157,2]
[424849373,1781205033000,-1346.4,0.00011424,2]
[424849372,1781205033000,-166.66,0.00011397,2]
[424849374,1781205033000,-420.0,0.00011466,2]
[424849370,1781205033000,-250.0,0.00011241,2]
[424849367,1781205033000,-1346.4,0.00011158,2]
[424849365,1781205033000,-150.0,0.00011023,2]
[424849368,1781205033000,-166.66,0.00011178,2]
[424849364,1781205033000,-300.0,0.00010971,2]
[424849369,1781205033000,-150.0,0.00011233,2]
[424849371,1781205033000,-166.66,0.00011288,2]
[424849366,1781205033000,-150.0,0.00011129,2]
[424849410,1781205040000,-5100.0,0.000116,4]
[424849415,1781205040000,-500.0,0.00011683,2]
[424849417,1781205040000,-500.0,0.00011683,2]
[424849416,1781205040000,-500.0,0.00011683,2]
[424849420,1781205040000,-500.0,0.00011683,2]
[424849421,1781205040000,-500.0,0.00011683,2]
[424849424,1781205040000,-500.0,0.00011683,2]
[424849419,1781205040000,-500.0,0.00011683,2]
[424849413,1781205040000,-500.0,0.00011683,2]
[424849418,1781205040000,-500.0,0.00011683,2]
[424849412,1781205040000,-500.0,0.00011683,2]
[424849403,1781205040000,-1000.0,0.00011586,2]
[424849409,1781205040000,-2314.0740074,0.0001159,2]
[424849407,1781205040000,-729.6564497,0.0001159,2]
[424849414,1781205040000,-500.0,0.00011683,2]
[424849408,1781205040000,-10097.90193483,0.0001159,2]
[424849406,1781205040000,-179.87415268,0.00011587,2]
[424849404,1781205040000,-33277.9515,0.00011587,2]
[424849423,1781205040000,-500.0,0.00011683,2]
[424849401,1781205040000,-15895.96642957,0.00011586,2]
[424849394,1781205040000,-34396.48924691,0.0001157,2]
[424849396,1781205040000,-250.0,0.0001157,2]
[424849398,1781205040000,-49983.54314392,0.00011585,2]
[424849411,1781205040000,-3259.0,0.00011671,2]
[424849422,1781205040000,-500.0,0.00011683,2]
[424849405,1781205040000,-2500.0,0.00011587,2]
[424849426,1781205040000,-500.0,0.00011683,2]
[424849425,1781205040000,-500.0,0.00011683,2]
[424849466,1781205040000,-500.0,0.00011683,2]
[424849463,1781205040000,-500.0,0.00011683,2]
[424849453,1781205040000,-500.0,0.00011683,2]
[424849455,1781205040000,-500.0,0.00011683,2]
[424849449,1781205040000,-500.0,0.00011683,2]
[424849451,1781205040000,-500.0,0.00011683,2]
[424849459,1781205040000,-500.0,0.00011683,2]
[424849457,1781205040000,-500.0,0.00011683,2]
[424849447,1781205040000,-500.0,0.00011683,2]
[424849445,1781205040000,-500.0,0.00011683,2]
[424849443,1781205040000,-500.0,0.00011683,2]
[424849461,1781205040000,-500.0,0.00011683,2]
[424849430,1781205040000,-500.0,0.00011683,2]
[424849437,1781205040000,-500.0,0.00011683,2]
[424849435,1781205040000,-500.0,0.00011683,2]
[424849438,1781205040000,-500.0,0.00011683,2]
[424849428,1781205040000,-500.0,0.00011683,2]
[424849432,1781205040000,-500.0,0.00011683,2]
[424849431,1781205040000,-500.0,0.00011683,2]
[424849433,1781205040000,-500.0,0.00011683,2]
[424849434,1781205040000,-500.0,0.00011683,2]
[424849429,1781205040000,-500.0,0.00011683,2]
[424849427,1781205040000,-500.0,0.00011683,2]
[424849441,1781205040000,-500.0,0.00011683,2]
[424849570,1781205041000,-500.0,0.0001225,2]
[424849567,1781205041000,-500.0,0.0001225,2]
[424849564,1781205041000,-500.0,0.0001225,2]
[424849566,1781205041000,-500.0,0.0001225,2]
[424849560,1781205041000,-500.0,0.0001225,2]
[424849559,1781205041000,-588.66070485,0.0001225,2]
[424849563,1781205041000,-500.0,0.0001225,2]
[424849562,1781205041000,-500.0,0.0001225,2]
[424849561,1781205041000,-500.0,0.0001225,2]
[424849568,1781205041000,-500.0,0.0001225,2]
[424849565,1781205041000,-500.0,0.0001225,2]
[424849569,1781205041000,-500.0,0.0001225,2]
[424849582,1781205041000,-500.0,0.0001225,2]
[424849571,1781205041000,-500.0,0.0001225,2]
[424849577,1781205041000,-344.79689696,0.0001225,2]
[424849576,1781205041000,-500.0,0.0001225,2]
[424849573,1781205041000,-500.0,0.0001225,2]
[424849583,1781205041000,-500.0,0.0001225,2]
[424849574,1781205041000,-598.72406063,0.0001225,2]
[424849575,1781205041000,-175.20689526,0.0001225,2]
[424849578,1781205041000,-500.0,0.0001225,2]
[424849579,1781205041000,-524.34360689,0.0001225,2]
[424849581,1781205041000,-188.15521262,0.0001225,2]
[424849580,1781205041000,-150.0,0.0001225,2]
[424849558,1781205041000,-500.0,0.0001225,2]
[424849584,1781205041000,-500.0,0.0001225,2]
[424849572,1781205041000,-500.0,0.0001225,2]
[424849556,1781205041000,-891.64949829,0.00012225,2]
[424849539,1781205041000,-500.0,0.00011686,2]
[424849553,1781205041000,-500.0,0.0001196,2]
[424849533,1781205041000,-500.0,0.00011686,2]
[424849534,1781205041000,-500.0,0.00011686,2]
[424849529,1781205041000,-150.0,0.00011686,2]
[424849528,1781205041000,-1058.4392676,0.00011686,3]
[424849531,1781205041000,-500.0,0.00011686,2]
[424849532,1781205041000,-500.0,0.00011686,2]
[424849530,1781205041000,-500.0,0.00011686,2]
[424849535,1781205041000,-500.0,0.00011686,2]
[424849536,1781205041000,-500.0,0.00011686,2]
[424849537,1781205041000,-500.0,0.00011686,2]
[424849541,1781205041000,-1346.4,0.0001169,2]
[424849542,1781205041000,-500.0,0.00011699,2]
[424849557,1781205041000,-500.0,0.00012234,2]
[424849540,1781205041000,-500.0,0.00011686,2]
[424849544,1781205041000,-215.95576085,0.00011715,2]
[424849543,1781205041000,-7700.0,0.000117,4]
[424849545,1781205041000,-160.0,0.00011715,2]
[424849547,1781205041000,-300.0,0.00011731,2]
[424849546,1781205041000,-160.0,0.00011715,2]
[424849548,1781205041000,-250.0,0.00011731,2]
[424849550,1781205041000,-12800.0,0.000119,4]
[424849549,1781205041000,-10200.0,0.000118,4]
[424849551,1781205041000,-49983.54314385,0.00011952,2]
[424849552,1781205041000,-10097.90193482,0.00011958,2]
[424849554,1781205041000,-1452.04,0.00011985,2]
[424849555,1781205041000,-15895.96642951,0.00012059,2]
[424849538,1781205041000,-500.0,0.00011686,2]
[424849589,1781205041000,-500.0,0.0001225,2]
[424849595,1781205041000,-500.0,0.0001225,2]
[424849586,1781205041000,-500.0,0.0001225,2]
[424849618,1781205041000,-500.0,0.00012323,2]
[424849619,1781205041000,-500.0,0.00012323,2]
[424849621,1781205041000,-500.0,0.00012323,2]
[424849624,1781205041000,-500.0,0.00012508,2]
[424849622,1781205041000,-500.0,0.00012323,2]
[424849623,1781205041000,-10097.90193482,0.00012326,2]
[424849626,1781205041000,-255.0,0.00012569,2]
[424849629,1781205041000,-10097.90193482,0.00012693,2]
[424849628,1781205041000,-49983.54314385,0.00012686,2]
[424849625,1781205041000,-15895.96642951,0.00012533,2]
[424849627,1781205041000,-587.0,0.00012607,2]
[424849631,1781205041000,-348.978598,0.00012792,2]
[424849620,1781205041000,-500.0,0.00012323,2]
[424849632,1781205041000,-183.087443,0.00012792,2]
[424849635,1781205041000,-276.0,0.00012877,2]
[424849634,1781205041000,-292.460025,0.00012856,2]
[424849638,1781205041000,-15895.96642951,0.00013006,2]
[424849636,1781205041000,-306.24,0.00012921,2]
[424849637,1781205041000,-433.728375,0.00013,2]
[424849640,1781205041000,-49983.54314385,0.00013053,2]
[424849639,1781205041000,-306.24,0.00013008,2]
[424849641,1781205041000,-500.0,0.00013056,2]
[424849643,1781205041000,-306.24,0.00013074,2]
[424849644,1781205041000,-306.24,0.0001313,2]
[424849642,1781205041000,-10097.90193482,0.00013061,2]
[424849590,1781205041000,-500.0,0.0001225,2]
[424849633,1781205041000,-459.656094,0.00012792,2]
[424849617,1781205041000,-500.0,0.00012323,2]
[424849630,1781205041000,-500.0,0.00012782,2]
[424849612,1781205041000,-1069.20872153,0.00012323,3]
[424849616,1781205041000,-2000.0,0.00012323,2]
[424849585,1781205041000,-296.36700609,0.0001225,2]
[424849588,1781205041000,-500.0,0.0001225,2]
[424849587,1781205041000,-500.0,0.0001225,2]
[424849592,1781205041000,-500.0,0.0001225,2]
[424849591,1781205041000,-500.0,0.0001225,2]
[424849593,1781205041000,-500.0,0.0001225,2]
[424849594,1781205041000,-500.0,0.0001225,2]
[424849599,1781205041000,-500.0,0.0001225,2]
[424849597,1781205041000,-500.0,0.0001225,2]
[424849598,1781205041000,-500.0,0.0001225,2]
[424849600,1781205041000,-500.0,0.0001225,2]
[424849602,1781205041000,-501.36769115,0.0001225,2]
[424849596,1781205041000,-500.0,0.0001225,2]
[424849613,1781205041000,-1047.3269896,0.00012323,3]
[424849614,1781205041000,-1058.4392676,0.00012323,3]
[424849603,1781205041000,-153.52,0.00012311,2]
[424849611,1781205041000,-1066.81128949,0.00012323,3]
[424849615,1781205041000,-1058.4392676,0.00012323,3]
[424849610,1781205041000,-1066.81128949,0.00012323,3]
[424849609,1781205041000,-1066.81128949,0.00012323,3]
[424849608,1781205041000,-151.0,0.00012321,2]
[424849606,1781205041000,-169.12,0.00012321,2]
[424849604,1781205041000,-49983.54314385,0.00012319,2]
[424849605,1781205041000,-151.0,0.00012321,2]
[424849601,1781205041000,-500.0,0.0001225,2]
[424849607,1781205041000,-151.0,0.00012321,2]
[424849684,1781205042000,-306.24,0.00013574,2]
[424849689,1781205042000,-150.0,0.00013638,2]
[424849685,1781205042000,-150.0,0.00013576,2]
[424849688,1781205042000,-306.24,0.00013623,2]
[424849683,1781205042000,-306.24,0.00013548,2]
[424849678,1781205042000,-150.0,0.00013488,2]
[424849682,1781205042000,-150.0,0.00013532,2]
[424849681,1781205042000,-306.24,0.00013522,2]
[424849680,1781205042000,-1000.0,0.000135,2]
[424849675,1781205042000,-152.23806348,0.00013488,2]
[424849686,1781205042000,-306.24,0.00013599,2]
[424849679,1781205042000,-306.24,0.00013494,2]
[424849687,1781205042000,-150.0,0.0001362,2]
[424849700,1781205042000,-500.0,0.00013698,2]
[424849691,1781205042000,-150.0,0.00013654,2]
[424849692,1781205042000,-150.0,0.00013664,2]
[424849693,1781205042000,-306.24,0.0001367,2]
[424849699,1781205042000,-500.0,0.00013698,2]
[424849703,1781205042000,-727.72,0.00013698,2]
[424849697,1781205042000,-500.0,0.00013697,2]
[424849694,1781205042000,-150.0,0.00013675,2]
[424849695,1781205042000,-150.0,0.00013675,2]
[424849702,1781205042000,-727.72,0.00013698,2]
[424849696,1781205042000,-306.24,0.00013693,2]
[424849698,1781205042000,-500.0,0.00013698,2]
[424849701,1781205042000,-296.55651413,0.00013698,2]
[424849677,1781205042000,-150.0,0.00013488,2]
[424849690,1781205042000,-306.24,0.00013647,2]
[424849676,1781205042000,-150.0,0.00013488,2]
[424849652,1781205042000,-160.0,0.00013284,2]
[424849671,1781205042000,-150.0,0.00013488,2]
[424849646,1781205042000,-270.722791,0.00013152,2]
[424849706,1781205042000,-727.72,0.00013698,2]
[424849649,1781205042000,-306.24,0.00013224,2]
[424849645,1781205042000,-245.209326,0.00013152,2]
[424849651,1781205042000,-306.24,0.00013265,2]
[424849650,1781205042000,-2314.07400739,0.00013245,2]
[424849647,1781205042000,-306.24,0.0001318,2]
[424849648,1781205042000,-442.46486,0.00013218,2]
[424849653,1781205042000,-189.996403,0.00013284,2]
[424849655,1781205042000,-301.170731,0.00013284,2]
[424849654,1781205042000,-219.992806,0.00013284,2]
[424849656,1781205042000,-306.24,0.00013304,2]
[424849657,1781205042000,-1452.04,0.00013316,2]
[424849673,1781205042000,-150.0,0.00013488,2]
[424849659,1781205042000,-306.24,0.00013339,2]
[424849661,1781205042000,-306.24,0.00013406,2]
[424849663,1781205042000,-10097.90193482,0.00013429,2]
[424849660,1781205042000,-306.24,0.00013373,2]
[424849662,1781205042000,-49983.54314385,0.00013421,2]
[424849665,1781205042000,-306.24,0.00013436,2]
[424849664,1781205042000,-208.934588,0.00013432,2]
[424849666,1781205042000,-306.24,0.00013466,2]
[424849668,1781205042000,-150.0,0.00013488,2]
[424849667,1781205042000,-15895.96642951,0.0001348,2]
[424849669,1781205042000,-150.0,0.00013488,2]
[424849674,1781205042000,-150.0,0.00013488,2]
[424849670,1781205042000,-150.0,0.00013488,2]
[424849672,1781205042000,-150.0,0.00013488,2]
[424849658,1781205042000,-162.985503,0.00013319,2]
[424849705,1781205042000,-727.72,0.00013698,2]
[424849708,1781205042000,-727.72,0.00013698,2]
[424849710,1781205042000,-727.72,0.00013698,2]
[424849741,1781205042000,-1055.86,0.00013698,2]
[424849735,1781205042000,-961.55,0.00013698,2]
[424849743,1781205042000,-1055.86,0.00013698,2]
[424849744,1781205042000,-1055.86,0.00013698,2]
[424849745,1781205042000,-1055.86,0.00013698,2]
[424849747,1781205042000,-1055.86,0.00013698,2]
[424849746,1781205042000,-1055.86,0.00013698,2]
[424849749,1781205042000,-1055.86,0.00013698,2]
[424849748,1781205042000,-1055.86,0.00013698,2]
[424849750,1781205042000,-1055.86,0.00013698,2]
[424849756,1781205042000,-1055.86,0.00013698,2]
[424849755,1781205042000,-1055.86,0.00013698,2]
[424849752,1781205042000,-1055.86,0.00013698,2]
[424849737,1781205042000,-961.55,0.00013698,2]
[424849753,1781205042000,-1055.86,0.00013698,2]
[424849759,1781205042000,-1055.86,0.00013698,2]
[424849762,1781205042000,-1055.86,0.00013698,2]
[424849766,1781205042000,-613.33,0.00013698,2]
[424849776,1781205042000,-613.33,0.00013698,2]
[424849779,1781205042000,-613.33,0.00013698,2]
[424849765,1781205042000,-1055.86,0.00013698,2]
[424849778,1781205042000,-613.33,0.00013698,2]
[424849704,1781205042000,-727.72,0.00013698,2]
[424849769,1781205042000,-613.33,0.00013698,2]
[424849772,1781205042000,-613.33,0.00013698,2]
[424849774,1781205042000,-613.33,0.00013698,2]
[424849781,1781205042000,-613.33,0.00013698,2]
[424849783,1781205042000,-613.33,0.00013698,2]
[424849751,1781205042000,-1055.86,0.00013698,2]
[424849739,1781205042000,-961.55,0.00013698,2]
[424849767,1781205042000,-613.33,0.00013698,2]
[424849740,1781205042000,-1055.86,0.00013698,2]
[424849742,1781205042000,-1055.86,0.00013698,2]
[424849707,1781205042000,-727.72,0.00013698,2]
[424849711,1781205042000,-727.72,0.00013698,2]
[424849715,1781205042000,-727.72,0.00013698,2]
[424849712,1781205042000,-727.72,0.00013698,2]
[424849713,1781205042000,-727.72,0.00013698,2]
[424849714,1781205042000,-727.72,0.00013698,2]
[424849716,1781205042000,-727.72,0.00013698,2]
[424849717,1781205042000,-727.72,0.00013698,2]
[424849719,1781205042000,-727.72,0.00013698,2]
[424849718,1781205042000,-727.72,0.00013698,2]
[424849720,1781205042000,-727.72,0.00013698,2]
[424849721,1781205042000,-961.55,0.00013698,2]
[424849722,1781205042000,-961.55,0.00013698,2]
[424849709,1781205042000,-727.72,0.00013698,2]
[424849725,1781205042000,-961.55,0.00013698,2]
[424849729,1781205042000,-961.55,0.00013698,2]
[424849738,1781205042000,-961.55,0.00013698,2]
[424849734,1781205042000,-961.55,0.00013698,2]
[424849733,1781205042000,-961.55,0.00013698,2]
[424849732,1781205042000,-961.55,0.00013698,2]
[424849731,1781205042000,-961.55,0.00013698,2]
[424849736,1781205042000,-961.55,0.00013698,2]
[424849728,1781205042000,-961.55,0.00013698,2]
[424849726,1781205042000,-961.55,0.00013698,2]
[424849724,1781205042000,-961.55,0.00013698,2]
[424849727,1781205042000,-961.55,0.00013698,2]
[424849723,1781205042000,-961.55,0.00013698,2]
[424849730,1781205042000,-961.55,0.00013698,2]
[424849822,1781205043000,-500.0,0.00013698,2]
[424849821,1781205043000,-500.0,0.00013698,2]
[424849820,1781205043000,-500.0,0.00013698,2]
[424849823,1781205043000,-500.0,0.00013698,2]
[424849818,1781205043000,-500.0,0.00013698,2]
[424849817,1781205043000,-579.83,0.00013698,2]
[424849810,1781205043000,-579.83,0.00013698,2]
[424849826,1781205043000,-500.0,0.00013698,2]
[424849811,1781205043000,-579.83,0.00013698,2]
[424849819,1781205043000,-500.0,0.00013698,2]
[424849815,1781205043000,-579.83,0.00013698,2]
[424849829,1781205043000,-238.48508219,0.00013698,2]
[424849825,1781205043000,-500.0,0.00013698,2]
[424849828,1781205043000,-549.73497953,0.00013698,2]
[424849827,1781205043000,-500.0,0.00013698,2]
[424849830,1781205043000,-500.0,0.00013698,2]
[424849834,1781205043000,-500.0,0.00013698,2]
[424849831,1781205043000,-500.0,0.00013698,2]
[424849836,1781205043000,-325.09226793,0.00013698,2]
[424849832,1781205043000,-500.0,0.00013698,2]
[424849833,1781205043000,-500.0,0.00013698,2]
[424849835,1781205043000,-510.49195258,0.00013698,2]
[424849814,1781205043000,-579.83,0.00013698,2]
[424849824,1781205043000,-500.0,0.00013698,2]
[424849816,1781205043000,-579.83,0.00013698,2]
[424849797,1781205043000,-500.0,0.00013698,2]
[424849813,1781205043000,-579.83,0.00013698,2]
[424849839,1781205043000,-500.0,0.00013698,2]
[424849785,1781205043000,-613.33,0.00013698,2]
[424849788,1781205043000,-613.33,0.00013698,2]
[424849790,1781205043000,-613.33,0.00013698,2]
[424849793,1781205043000,-613.33,0.00013698,2]
[424849787,1781205043000,-613.33,0.00013698,2]
[424849789,1781205043000,-613.33,0.00013698,2]
[424849794,1781205043000,-613.33,0.00013698,2]
[424849791,1781205043000,-613.33,0.00013698,2]
[424849786,1781205043000,-613.33,0.00013698,2]
[424849796,1781205043000,-500.0,0.00013698,2]
[424849795,1781205043000,-500.0,0.00013698,2]
[424849798,1781205043000,-249.71012285,0.00013698,2]
[424849800,1781205043000,-579.83,0.00013698,2]
[424849801,1781205043000,-579.83,0.00013698,2]
[424849802,1781205043000,-579.83,0.00013698,2]
[424849804,1781205043000,-579.83,0.00013698,2]
[424849799,1781205043000,-579.83,0.00013698,2]
[424849805,1781205043000,-579.83,0.00013698,2]
[424849806,1781205043000,-579.83,0.00013698,2]
[424849808,1781205043000,-579.83,0.00013698,2]
[424849807,1781205043000,-579.83,0.00013698,2]
[424849809,1781205043000,-579.83,0.00013698,2]
[424849812,1781205043000,-579.83,0.00013698,2]
[424849837,1781205043000,-500.0,0.00013698,2]
[424849803,1781205043000,-579.83,0.00013698,2]
[424849840,1781205043000,-500.0,0.00013698,2]
[424849866,1781205043000,-807.75,0.00013698,2]
[424849871,1781205043000,-807.75,0.00013698,2]
[424849872,1781205043000,-807.75,0.00013698,2]
[424849895,1781205043000,-500.0,0.00013698,2]
[424849873,1781205043000,-500.0,0.00013698,2]
[424849875,1781205043000,-500.0,0.00013698,2]
[424849874,1781205043000,-500.0,0.00013698,2]
[424849876,1781205043000,-500.0,0.00013698,2]
[424849880,1781205043000,-500.0,0.00013698,2]
[424849877,1781205043000,-500.0,0.00013698,2]
[424849879,1781205043000,-500.0,0.00013698,2]
[424849878,1781205043000,-500.0,0.00013698,2]
[424849882,1781205043000,-500.0,0.00013698,2]
[424849881,1781205043000,-500.0,0.00013698,2]
[424849883,1781205043000,-500.0,0.00013698,2]
[424849888,1781205043000,-500.0,0.00013698,2]
[424849892,1781205043000,-500.0,0.00013698,2]
[424849884,1781205043000,-500.0,0.00013698,2]
[424849886,1781205043000,-500.0,0.00013698,2]
[424849894,1781205043000,-500.0,0.00013698,2]
[424849890,1781205043000,-500.0,0.00013698,2]
[424849893,1781205043000,-500.0,0.00013698,2]
[424849838,1781205043000,-500.0,0.00013698,2]
[424849863,1781205043000,-807.75,0.00013698,2]
[424849868,1781205043000,-807.75,0.00013698,2]
[424849885,1781205043000,-500.0,0.00013698,2]
[424849869,1781205043000,-807.75,0.00013698,2]
[424849867,1781205043000,-807.75,0.00013698,2]
[424849842,1781205043000,-500.0,0.00013698,2]
[424849845,1781205043000,-500.0,0.00013698,2]
[424849847,1781205043000,-500.0,0.00013698,2]
[424849843,1781205043000,-500.0,0.00013698,2]
[424849846,1781205043000,-500.0,0.00013698,2]
[424849848,1781205043000,-500.0,0.00013698,2]
[424849850,1781205043000,-500.0,0.00013698,2]
[424849851,1781205043000,-500.0,0.00013698,2]
[424849849,1781205043000,-500.0,0.00013698,2]
[424849853,1781205043000,-321.97837495,0.00013698,2]
[424849852,1781205043000,-500.0,0.00013698,2]
[424849841,1781205043000,-500.0,0.00013698,2]
[424849856,1781205043000,-807.75,0.00013698,2]
[424849870,1781205043000,-807.75,0.00013698,2]
[424849859,1781205043000,-807.75,0.00013698,2]
[424849865,1781205043000,-807.75,0.00013698,2]
[424849864,1781205043000,-807.75,0.00013698,2]
[424849862,1781205043000,-807.75,0.00013698,2]
[424849860,1781205043000,-807.75,0.00013698,2]
[424849858,1781205043000,-807.75,0.00013698,2]
[424849855,1781205043000,-807.75,0.00013698,2]
[424849857,1781205043000,-807.75,0.00013698,2]
[424849854,1781205043000,-807.75,0.00013698,2]
[424849861,1781205043000,-807.75,0.00013698,2]
[424849917,1781205044000,-500.0,0.00013698,2]
[424849922,1781205044000,-500.0,0.00013698,2]
[424849911,1781205044000,-500.0,0.00013698,2]
[424849916,1781205044000,-500.0,0.00013698,2]
[424849919,1781205044000,-500.0,0.00013698,2]
[424849918,1781205044000,-500.0,0.00013698,2]
[424849921,1781205044000,-500.0,0.00013698,2]
[424849926,1781205044000,-500.0,0.00013698,2]